[Event "EYCC Girls U10 2018"]
[Site "Riga"]
[Date "2018.08.24"]
[Round "5"]
[White "Mikhailina, Olga"]
[Black "Vlasova, Olesia"]
[Result "0-1"]
[ECO "B34"]
[WhiteElo "1373"]
[BlackElo "1693"]
[Annotator "NA"]
[PlyCount "86"]
[EventDate "2018.08.20"]
[EventType "swiss"]
[EventCountry "LAT"]
[SourceTitle "playchess.com"]
[Source "ChessBase"]
[SourceQuality "1"]
[TimeControl "40/5400+30:1800+30"]

1. e4 {[%emt 0:00:00]} c5 {[%emt 0:00:00]} 2. Nf3 {[%emt 0:00:00]} Nc6 {[%emt 0:00:00]} 3. d4 {[%emt 0:00:00]} cxd4 {[%emt 0:00:00]} 4. Nxd4 {[%emt 0:00:00]} g6 {[%emt 0:00:11]} 5. Nxc6 {[%emt 0:19:48]} bxc6 {[%emt 0:01:51]} 6. Qd4 {[%emt 0:00:49]} Nf6 {[%emt 0:05:13]} 7. e5 {[%emt 0:05:38]} Qa5+ {[%emt 0:01:39]} 8. Bd2 {[%emt 0:17:31]} Qd5 {[%emt 0:00:19]} 9. Qxd5 {[%emt 0:00:39]} Nxd5 {[%emt 0:00:08]} 10. Nc3 {[%emt 0:00:17]} Nxc3 {[%emt 0:07:34]} 11. Bxc3 {[%emt 0:00:19]} Bg7 {[%emt 0:00:58]} 12. O-O-O {[%emt 0:04:03]} O-O {[%emt 0:01:42]} 13. Bc4 {[%emt 0:11:55]} Kh8 {[%emt 0:04:54]} 14. Rhe1 {[%emt 0:06:36]} Kg8 {[%emt 0:08:37]} 15. Kb1 {[%emt 0:05:15]} Rb8 {[%emt 0:00:44]} 16. Bd4 {[%emt 0:03:42]} a6 {[%emt 0:00:47]} 17. Bb3 {[%emt 0:03:06]} Ra8 {[%emt 0:13:54]} 18. Re4 {[%emt 0:04:19]} Kh8 {[%emt 0:07:28]} 19. Bc5 {[%emt 0:03:01]} Re8 {[%emt 0:08:24]} 20. Bxf7 {[%emt 0:03:12]} Rf8 {[%emt 0:00:12]} 21. e6 {[%emt 0:02:17]} d6 {[%emt 0:04:12]} 22. Be3 {[%emt 0:01:23]} Rb8 {[%emt 0:01:36]} 23. b3 {[%emt 0:03:02]} Bf6 {[%emt 0:01:17]} 24. Bh6 {[%emt 0:01:32]} Rd8 {[%emt 0:00:03]} 25. Be3 {[%emt 0:01:30]} Bb7 {[%emt 0:01:18]} 26. Bd4 {[%emt 0:01:12]} Bxd4 {[%emt 0:01:15]} 27. Rexd4 {[%emt 0:00:10]} Kg7 {[%emt 0:00:34]} 28. f3 {[%emt 0:00:31]} c5 {[%emt 0:01:26]} 29. R4d2 {[%emt 0:00:36]} Bc6 {[%emt 0:00:49]} 30. c4 {[%emt 0:01:36]} a5 {[%emt 0:00:29]} 31. Kc2 {[%emt 0:00:35]} Rb6 {[%emt 0:01:17]} 32. Rb1 {[%emt 0:00:34]} Rdb8 {[%emt 0:00:48]} 33. Rdd1 {[%emt 0:00:32]} Rb4 {[%emt 0:01:41]} 34. a4 {[%emt 0:00:44]} Kf6 {[%emt 0:07:04]} 35. Kc3 {[%emt 0:00:26]} Bxa4 {[%emt 0:00:58]} 36. Kd2 {[%emt 0:00:35]} Bxb3 {[%emt 0:00:42]} 37. Rdc1 {[%emt 0:00:30]} a4 {[%emt 0:02:29]} 38. Rc3 {[%emt 0:00:31]} a3 {[%emt 0:00:42]} 39. Rcc1 {[%emt 0:00:28]} a2 {[%emt 0:00:18]} 40. Ra1 {[%emt 0:00:00]} Bxc4 {[%emt 0:00:00]} 41. Kc2 {[%emt 0:03:43]} d5 {[%emt 0:00:56]} 42. g4 {[%emt 0:01:16]} Rb2+ {[%emt 0:00:09]} 43. Kc3 {[%emt 0:01:03]} R8b3# {[%emt 0:00:05] Kd4} 0-1

[Event "EYCC Girls U10 2018"]
[Site "Riga"]
[Date "2018.08.24"]
[Round "5"]
[White "Peglau, Dora"]
[Black "Maria, Lia Alexandra"]
[Result "1/2-1/2"]
[ECO "A22"]
[WhiteElo "1273"]
[BlackElo "1576"]
[Annotator "NA"]
[PlyCount "65"]
[EventDate "2018.08.20"]
[EventType "swiss"]
[EventCountry "LAT"]
[SourceTitle "playchess.com"]
[Source "ChessBase"]
[SourceQuality "1"]
[TimeControl "40/5400+30:1800+30"]

1. c4 {[%emt 0:00:00]} e5 {[%emt 0:00:00]} 2. Nc3 {[%emt 0:00:00]} Nf6 {[%emt 0:00:05]} 3. g3 {[%emt 0:00:00]} c6 {[%emt 0:00:30]} 4. Bg2 {[%emt 0:00:02]} d5 {[%emt 0:00:31]} 5. cxd5 {[%emt 0:00:08]} cxd5 {[%emt 0:00:09]} 6. d3 {[%emt 0:00:32]} Nc6 {[%emt 0:01:22]} 7. Bg5 {[%emt 0:00:35]} d4 {[%emt 0:13:43]} 8. Nd5 {[%emt 0:01:30]} Be7 {[%emt 0:01:20]} 9. Nxe7 {[%emt 0:01:08]} Qxe7 {[%emt 0:00:15]} 10. Nf3 {[%emt 0:01:18]} h6 {[%emt 0:01:08]} 11. Bxf6 {[%emt 0:05:17]} Qxf6 {[%emt 0:00:16]} 12. O-O {[%emt 0:01:25]} O-O {[%emt 0:00:30]} 13. Rc1 {[%emt 0:01:35]} Be6 {[%emt 0:04:07]} 14. a3 {[%emt 0:03:00]} a5 {[%emt 0:03:34]} 15. Nd2 {[%emt 0:02:53]} Rac8 {[%emt 0:01:27]} 16. Ne4 {[%emt 0:02:37]} Qe7 {[%emt 0:05:41]} 17. Qd2 {[%emt 0:05:25]} Rfd8 {[%emt 0:04:46]} 18. Nc5 {[%emt 0:08:55]} Bd5 {[%emt 0:01:11]} 19. Bxd5 {[%emt 0:01:59]} Rxd5 {[%emt 0:00:16]} 20. Na4 {[%emt 0:10:41]} Rdd8 {[%emt 0:06:34]} 21. Nb6 {[%emt 0:05:15]} Rb8 {[%emt 0:05:41]} 22. e4 {[%emt 0:15:47]} dxe3 {[%emt 0:05:44]} 23. fxe3 {[%emt 0:10:31]} f6 {[%emt 0:12:48]} 24. e4 {[%emt 0:03:54]} Qd6 {[%emt 0:09:26]} 25. Nd5 {[%emt 0:04:15]} Ne7 {[%emt 0:02:40]} 26. Nxe7+ {[%emt 0:02:19]} Qxe7 {[%emt 0:00:17]} 27. Qxa5 {[%emt 0:00:26]} Rxd3 {[%emt 0:00:58]} 28. Rc7 {[%emt 0:00:36]} Qd8 {[%emt 0:03:00]} 29. Qb6 {[%emt 0:03:37]} Qd6 {[%emt 0:04:33]} 30. Qxd6 {[%emt 0:00:59]} Rxd6 {[%emt 0:00:24]} 31. Rfc1 {[%emt 0:01:32]} Rc6 {[%emt 0:03:49]} 32. R1xc6 {[%emt 0:01:18]} bxc6 {[%emt 0:00:10]} 33. Rxc6 {[%emt 0:00:15]} 1/2-1/2

[Event "EYCC Girls U10 2018"]
[Site "Riga"]
[Date "2018.08.26"]
[Round "6"]
[White "Vlasova, Olesia"]
[Black "Helliesen, Lykke Merlot"]
[Result "1-0"]
[ECO "C68"]
[WhiteElo "1693"]
[BlackElo "1482"]
[Annotator "NA"]
[PlyCount "111"]
[EventDate "2018.08.20"]
[EventType "swiss"]
[EventCountry "LAT"]
[SourceTitle "playchess.com"]
[Source "ChessBase"]
[SourceQuality "1"]
[TimeControl "40/5400+30:1800+30"]

1. e4 {[%emt 0:00:00]} e5 {[%emt 0:00:00]} 2. Nf3 {[%emt 0:00:00]} Nc6 {[%emt 0:00:01]} 3. Bb5 {[%emt 0:00:00]} a6 {[%emt 0:00:30]} 4. Bxc6 {[%emt 0:00:00]} dxc6 {[%emt 0:00:11]} 5. O-O {[%emt 0:00:05]} Bg4 {[%emt 0:00:10]} 6. h3 {[%emt 0:00:07]} h5 {[%emt 0:00:19]} 7. d3 {[%emt 0:00:06]} Qf6 {[%emt 0:00:35]} 8. Nbd2 {[%emt 0:00:10]} g5 {[%emt 0:00:16]} 9. b3 {[%emt 0:00:09]} Qg7 {[%emt 0:02:51]} 10. Bb2 {[%emt 0:00:35]} f6 {[%emt 0:01:46]} 11. Qe2 {[%emt 0:02:30]} Be6 {[%emt 0:01:46]} 12. Rfd1 {[%emt 0:08:42]} g4 {[%emt 0:01:35]} 13. hxg4 {[%emt 0:01:06]} hxg4 {[%emt 0:00:29]} 14. Nh2 {[%emt 0:00:11]} Bc5 {[%emt 0:03:03]} 15. g3 {[%emt 0:01:37]} O-O-O {[%emt 0:02:10]} 16. Kg2 {[%emt 0:09:26]} f5 {[%emt 0:02:30]} 17. exf5 {[%emt 0:07:29]} Bd5+ {[%emt 0:00:28]} 18. Ne4 {[%emt 0:00:58]} Qh7 {[%emt 0:03:36]} 19. Rh1 {[%emt 0:00:53]} Qxf5 {[%emt 0:00:50]} 20. c4 {[%emt 0:00:42]} Bxe4+ {[%emt 0:00:43]} 21. dxe4 {[%emt 0:00:14]} Qg5 {[%emt 0:03:21]} 22. Qxg4+ {[%emt 0:00:20]} Qxg4 {[%emt 0:00:47]} 23. Nxg4 {[%emt 0:00:05]} Rxh1 {[%emt 0:02:45]} 24. Rxh1 {[%emt 0:00:07]} Ne7 {[%emt 0:05:58]} 25. Nxe5 {[%emt 0:02:17]} b6 {[%emt 0:01:38]} 26. Bc3 {[%emt 0:00:47]} b5 {[%emt 0:02:34]} 27. f4 {[%emt 0:09:01]} b4 {[%emt 0:03:38]} 28. Be1 {[%emt 0:00:27]} Kb7 {[%emt 0:14:42]} 29. f5 {[%emt 0:03:33]} Bd4 {[%emt 0:02:27]} 30. Nf3 {[%emt 0:00:23]} Bc3 {[%emt 0:08:20]} 31. Bxc3 {[%emt 0:02:32]} bxc3 {[%emt 0:00:14]} 32. Rc1 {[%emt 0:01:19]} Rd3 {[%emt 0:01:47]} 33. Kf2 {[%emt 0:00:32]} c5 {[%emt 0:16:35]} 34. Ke2 {[%emt 0:00:25]} Rd8 {[%emt 0:00:21]} 35. Rxc3 {[%emt 0:00:20]} Nc6 {[%emt 0:00:28]} 36. Rd3 {[%emt 0:01:42]} Rg8 {[%emt 0:00:41]} 37. Kf2 {[%emt 0:00:34]} Re8 {[%emt 0:00:36]} 38. e5 {[%emt 0:01:07]} Nb4 {[%emt 0:01:47]} 39. Rd2 {[%emt 0:00:21]} Rf8 {[%emt 0:00:56]} 40. g4 {[%emt 0:00:00]} Nc6 {[%emt 0:00:00]} 41. Kg3 {[%emt 0:01:35]} Rg8 {[%emt 0:01:44]} 42. g5 {[%emt 0:00:19]} Ne7 {[%emt 0:04:54]} 43. Kf4 {[%emt 0:00:35]} Rf8 {[%emt 0:02:08]} 44. f6 {[%emt 0:00:38]} Ng6+ {[%emt 0:00:34]} 45. Kf5 {[%emt 0:01:00]} Ne7+ {[%emt 0:00:35]} 46. Ke4 {[%emt 0:00:24]} Ng6 {[%emt 0:02:33]} 47. e6 {[%emt 0:00:26]} Re8 {[%emt 0:04:38]} 48. Kf5 {[%emt 0:00:21]} Nf8 {[%emt 0:02:35]} 49. e7 {[%emt 0:00:04]} Nh7 {[%emt 0:00:47]} 50. g6 {[%emt 0:00:07]} Nf8 {[%emt 0:05:16]} 51. exf8=Q {[%emt 0:00:16]} Rxf8 {[%emt 0:01:36]} 52. g7 {[%emt 0:00:06]} Rg8 {[%emt 0:00:30]} 53. Kg6 {[%emt 0:00:05]} a5 {[%emt 0:03:47]} 54. f7 {[%emt 0:00:04]} Rxg7+ {[%emt 0:00:13]} 55. Kxg7 {[%emt 0:00:07]} Kb6 {[%emt 0:00:09]} 56. f8=Q {[%emt 0:00:07]} 1-0

[Event "EYCC Girls U10 2018"]
[Site "Riga"]
[Date "2018.08.26"]
[Round "6"]
[White "Svergina, Sofya"]
[Black "Mutina, Sofia"]
[Result "1-0"]
[ECO "B15"]
[WhiteElo "1657"]
[BlackElo "1319"]
[Annotator "NA"]
[PlyCount "81"]
[EventDate "2018.08.20"]
[EventType "swiss"]
[EventCountry "LAT"]
[SourceTitle "playchess.com"]
[Source "ChessBase"]
[SourceQuality "1"]
[TimeControl "40/5400+30:1800+30"]

1. e4 {[%emt 0:00:00]} c6 {[%emt 0:00:00]} 2. d4 {[%emt 0:00:05]} d5 {[%emt 0:00:38]} 3. Nc3 {[%emt 0:00:47]} h6 {[%emt 0:01:34]} 4. Nf3 {[%emt 0:04:15]} Nf6 {[%emt 0:02:16]} 5. e5 {[%emt 0:00:44]} Ne4 {[%emt 0:01:00]} 6. Bd3 {[%emt 0:01:26]} Nxc3 {[%emt 0:01:11]} 7. bxc3 {[%emt 0:00:09]} Bg4 {[%emt 0:00:44]} 8. h3 {[%emt 0:00:32]} Bxf3 {[%emt 0:01:09]} 9. Qxf3 {[%emt 0:00:09]} e6 {[%emt 0:00:28]} 10. Bd2 {[%emt 0:02:11]} c5 {[%emt 0:02:45]} 11. Bb5+ {[%emt 0:02:09]} Nd7 {[%emt 0:00:20]} 12. O-O {[%emt 0:01:05]} a6 {[%emt 0:01:37]} 13. Bxd7+ {[%emt 0:00:07]} Qxd7 {[%emt 0:00:06]} 14. Qe2 {[%emt 0:02:39]} c4 {[%emt 0:00:24]} 15. f4 {[%emt 0:00:37]} Be7 {[%emt 0:01:31]} 16. Qf2 {[%emt 0:02:47]} O-O {[%emt 0:10:09]} 17. Qg3 {[%emt 0:07:23]} Kh7 {[%emt 0:02:14]} 18. a4 {[%emt 0:00:50]} b5 {[%emt 0:01:51]} 19. a5 {[%emt 0:00:33]} Bd8 {[%emt 0:01:23]} 20. Qf3 {[%emt 0:00:53]} Bc7 {[%emt 0:02:22]} 21. Ra2 {[%emt 0:01:09]} Qd8 {[%emt 0:00:20]} 22. f5 {[%emt 0:00:29]} f6 {[%emt 0:16:34]} 23. Qg4 {[%emt 0:14:37]} exf5 {[%emt 0:00:22]} 24. Qxf5+ {[%emt 0:00:07]} Kh8 {[%emt 0:00:10]} 25. e6 {[%emt 0:00:49]} Bd6 {[%emt 0:01:31]} 26. Bf4 {[%emt 0:01:54]} Bxf4 {[%emt 0:01:51]} 27. Rxf4 {[%emt 0:03:12]} Ra7 {[%emt 0:00:49]} 28. Qh5 {[%emt 0:00:46]} Kh7 {[%emt 0:00:41]} 29. Qf3 {[%emt 0:03:03]} Re7 {[%emt 0:00:36]} 30. Rf5 {[%emt 0:00:33]} Rxe6 {[%emt 0:00:57]} 31. Rxd5 {[%emt 0:02:21]} Qe7 {[%emt 0:05:28]} 32. Qf5+ {[%emt 0:12:56]} g6 {[%emt 0:00:11]} 33. Qf4 {[%emt 0:00:25]} Rc8 {[%emt 0:02:39]} 34. Ra1 {[%emt 0:03:12]} Rcc6 {[%emt 0:08:19]} 35. Qb8 {[%emt 0:04:37]} Qe8 {[%emt 0:02:09]} 36. Rd8 {[%emt 0:00:32]} Qf7 {[%emt 0:00:40]} 37. d5 {[%emt 0:00:27]} g5 {[%emt 0:02:25]} 38. Rh8+ {[%emt 0:00:34]} Kg7 {[%emt 0:00:06]} 39. dxc6 {[%emt 0:00:14]} Rxc6 {[%emt 0:00:00]} 40. Re1 {[%emt 0:00:00]} Rc5 {[%emt 0:00:00]} 41. Re7 {[%emt 0:01:34]} 1-0

[Event "EYCC Girls U10 2018"]
[Site "Riga"]
[Date "2018.08.26"]
[Round "6"]
[White "Shukhman, Anna"]
[Black "Shvedova, Alexandra"]
[Result "1/2-1/2"]
[ECO "A13"]
[WhiteElo "1577"]
[BlackElo "1758"]
[Annotator "NA"]
[PlyCount "149"]
[EventDate "2018.08.20"]
[EventType "swiss"]
[EventCountry "LAT"]
[SourceTitle "playchess.com"]
[Source "ChessBase"]
[SourceQuality "1"]
[TimeControl "40/5400+30:1800+30"]

1. c4 {[%emt 0:00:00]} e6 {[%emt 0:00:00]} 2. Nf3 {[%emt 0:00:00]} d5 {[%emt 0:00:00]} 3. g3 {[%emt 0:00:00]} Nf6 {[%emt 0:00:15]} 4. Bg2 {[%emt 0:00:06]} c5 {[%emt 0:01:37]} 5. cxd5 {[%emt 0:00:12]} exd5 {[%emt 0:00:07]} 6. d4 {[%emt 0:00:04]} b6 7. O-O {[%emt 0:00:38]} Be7 {[%emt 0:04:20]} 8. Nc3 {[%emt 0:00:43]} O-O {[%emt 0:00:44]} 9. Bf4 {[%emt 0:03:22]} Bb7 {[%emt 0:03:09]} 10. Rc1 {[%emt 0:02:52]} Na6 {[%emt 0:15:25]} 11. Ne5 {[%emt 0:14:41]} Nc7 {[%emt 0:02:47]} 12. Be3 {[%emt 0:05:02]} Rb8 {[%emt 0:11:11]} 13. b3 {[%emt 0:05:12]} Ne6 {[%emt 0:02:23]} 14. Na4 {[%emt 0:05:07]} Bd6 {[%emt 0:05:52]} 15. Nf3 {[%emt 0:03:31]} Ng4 {[%emt 0:04:14]} 16. Qd3 {[%emt 0:02:46]} Rc8 {[%emt 0:03:25]} 17. Bh3 {[%emt 0:07:18]} Nxe3 {[%emt 0:00:11]} 18. Qxe3 {[%emt 0:00:22]} Re8 {[%emt 0:00:19]} 19. Qd2 {[%emt 0:05:37]} cxd4 {[%emt 0:11:24]} 20. Rcd1 {[%emt 0:08:05]} Rc7 {[%emt 0:05:16]} 21. Nxd4 {[%emt 0:03:22]} Nxd4 {[%emt 0:00:14]} 22. Qxd4 {[%emt 0:00:05]} Rxe2 {[%emt 0:00:41]} 23. Nc3 {[%emt 0:01:35]} Re5 {[%emt 0:03:31]} 24. Nb5 {[%emt 0:00:38]} Rce7 {[%emt 0:00:44]} 25. Nxa7 {[%emt 0:06:26]} Bc5 {[%emt 0:00:18]} 26. Qc3 {[%emt 0:03:44]} Qe8 {[%emt 0:04:58]} 27. b4 {[%emt 0:05:35]} Ba6 {[%emt 0:00:13]} 28. bxc5 {[%emt 0:00:23]} Bxf1 {[%emt 0:00:10]} 29. Bxf1 {[%emt 0:00:09]} Rxa7 {[%emt 0:00:03]} 30. cxb6 {[%emt 0:00:08]} Rb7 {[%emt 0:00:25]} 31. Bb5 {[%emt 0:05:00]} Qb8 {[%emt 0:01:11]} 32. Rc1 {[%emt 0:00:26]} g6 {[%emt 0:02:46]} 33. Qd4 {[%emt 0:02:04]} Rxb6 {[%emt 0:01:39]} 34. Bd7 {[%emt 0:00:07]} Rb1 {[%emt 0:00:45]} 35. Rxb1 {[%emt 0:02:22]} Qxb1+ {[%emt 0:00:05]} 36. Kg2 {[%emt 0:00:06]} Qe4+ {[%emt 0:03:13]} 37. Qxe4 {[%emt 0:00:05]} Rxe4 {[%emt 0:00:03]} 38. Bc6 {[%emt 0:00:06]} Re5 {[%emt 0:00:04]} 39. a4 {[%emt 0:00:13]} d4 {[%emt 0:00:03]} 40. Bb5 {[%emt 0:00:00]} Kf8 {[%emt 0:00:00]} 41. f4 {[%emt 0:01:24]} Rd5 {[%emt 0:02:50]} 42. Kf3 {[%emt 0:00:09]} d3 {[%emt 0:00:33]} 43. Ke4 {[%emt 0:01:28]} d2 {[%emt 0:00:06]} 44. Kxd5 {[%emt 0:00:04]} d1=Q+ {[%emt 0:00:05]} 45. Kc5 {[%emt 0:00:08]} Qg1+ {[%emt 0:01:07]} 46. Kc6 {[%emt 0:00:08]} Qxh2 {[%emt 0:00:42]} 47. a5 {[%emt 0:00:13]} Qxg3 {[%emt 0:00:11]} 48. a6 {[%emt 0:00:11]} Qxf4 {[%emt 0:00:46]} 49. a7 {[%emt 0:00:10]} Qe4+ {[%emt 0:00:05]} 50. Kb6 {[%emt 0:00:04]} Qa8 {[%emt 0:00:06]} 51. Bc6 {[%emt 0:00:04]} Qxa7+ {[%emt 0:00:03]} 52. Kxa7 {[%emt 0:00:06]} f5 {[%emt 0:00:19]} 53. Kb6 {[%emt 0:00:04]} g5 {[%emt 0:00:17]} 54. Kc5 {[%emt 0:00:04]} Kf7 {[%emt 0:00:36]} 55. Kd4 {[%emt 0:00:08]} Kf6 {[%emt 0:00:08]} 56. Ke3 {[%emt 0:00:08]} h5 {[%emt 0:00:25]} 57. Kf3 {[%emt 0:00:26]} h4 {[%emt 0:00:44]} 58. Bd7 {[%emt 0:00:33]} Ke5 {[%emt 0:00:32]} 59. Bc8 {[%emt 0:00:37]} g4+ {[%emt 0:00:12]} 60. Kg2 {[%emt 0:00:04]} Kf4 {[%emt 0:00:25]} 61. Bd7 {[%emt 0:00:51]} Kg5 {[%emt 0:00:54]} 62. Bc6 {[%emt 0:00:31]} f4 {[%emt 0:00:10]} 63. Bd5 {[%emt 0:00:28]} h3+ {[%emt 0:00:23]} 64. Kh2 {[%emt 0:00:04]} Kh4 {[%emt 0:00:13]} 65. Be4 {[%emt 0:01:27]} g3+ {[%emt 0:00:15]} 66. Kg1 {[%emt 0:00:10]} Kg4 {[%emt 0:00:06]} 67. Bc6 {[%emt 0:00:10]} f3 {[%emt 0:00:59]} 68. Bd7+ {[%emt 0:00:13]} Kh4 {[%emt 0:00:04]} 69. Bc6 {[%emt 0:00:24]} Kg4 {[%emt 0:14:22]} 70. Bd7+ {[%emt 0:00:23]} Kh4 {[%emt 0:01:40]} 71. Bc6 {[%emt 0:00:45]} f2+ {[%emt 0:00:37]} 72. Kf1 {[%emt 0:00:12]} Kg5 {[%emt 0:02:07]} 73. Bd7 {[%emt 0:00:33]} h2 {[%emt 0:00:06]} 74. Bc6 {[%emt 0:00:03]} Kf4 {[%emt 0:00:46]} 75. Bg2 {[%emt 0:00:34]} 1/2-1/2

[Event "EYCC Girls U10 2018"]
[Site "Riga"]
[Date "2018.08.26"]
[Round "6"]
[White "Gorcuk, Ozgu"]
[Black "Zhapova, Yana"]
[Result "0-1"]
[ECO "A40"]
[WhiteElo "1299"]
[BlackElo "1733"]
[Annotator "NA"]
[PlyCount "146"]
[EventDate "2018.08.20"]
[EventType "swiss"]
[EventCountry "LAT"]
[SourceTitle "playchess.com"]
[Source "ChessBase"]
[SourceQuality "1"]
[TimeControl "40/5400+30:1800+30"]

1. d4 {[%emt 0:00:00]} e6 {[%emt 0:00:23]} 2. Nf3 {[%emt 0:00:04]} c5 {[%emt 0:00:34]} 3. c3 {[%emt 0:01:02]} Nc6 {[%emt 0:02:48]} 4. Bf4 {[%emt 0:03:51]} cxd4 {[%emt 0:01:17]} 5. cxd4 {[%emt 0:00:15]} Qb6 {[%emt 0:00:08]} 6. Qd2 {[%emt 0:11:40]} Nf6 {[%emt 0:00:32]} 7. e3 {[%emt 0:00:34]} Ne4 {[%emt 0:00:52]} 8. Qc2 {[%emt 0:02:39]} d5 {[%emt 0:00:36]} 9. a3 {[%emt 0:00:33]} Bd7 {[%emt 0:00:56]} 10. Nbd2 {[%emt 0:02:23]} Rc8 {[%emt 0:02:59]} 11. Qb1 {[%emt 0:03:17]} f5 {[%emt 0:21:51]} 12. Bd3 {[%emt 0:02:16]} Be7 {[%emt 0:00:26]} 13. h3 {[%emt 0:00:35]} Nd8 {[%emt 0:23:41]} 14. O-O {[%emt 0:15:23]} O-O {[%emt 0:00:43]} 15. Rd1 {[%emt 0:01:25]} Nf7 {[%emt 0:02:27]} 16. Bh2 {[%emt 0:09:48]} Ba4 {[%emt 0:03:10]} 17. Re1 {[%emt 0:00:36]} Nfg5 {[%emt 0:03:18]} 18. b4 {[%emt 0:07:44]} Nxf3+ {[%emt 0:08:02]} 19. Nxf3 {[%emt 0:04:39]} Nc3 {[%emt 0:07:07]} 20. Qb2 {[%emt 0:01:37]} a5 {[%emt 0:02:40]} 21. b5 {[%emt 0:01:16]} Ne4 {[%emt 0:03:56]} 22. Ne5 {[%emt 0:01:53]} Rfd8 {[%emt 0:00:36]} 23. f3 {[%emt 0:02:09]} Nd6 {[%emt 0:00:12]} 24. Rec1 {[%emt 0:02:01]} Bf6 {[%emt 0:01:42]} 25. Rxc8 {[%emt 0:01:10]} Nxc8 26. Rc1 {[%emt 0:02:28]} Nd6 {[%emt 0:01:03]} 27. Be2 {[%emt 0:05:19]} Bg5 {[%emt 0:03:20]} 28. Qd2 {[%emt 0:03:39]} Bxb5 {[%emt 0:01:48]} 29. Rb1 {[%emt 0:00:36]} Qa6 {[%emt 0:00:12]} 30. Bxb5 {[%emt 0:00:37]} Nxb5 {[%emt 0:00:06]} 31. a4 {[%emt 0:00:30]} Na3 {[%emt 0:00:46]} 32. Rb3 {[%emt 0:01:04]} Nc4 {[%emt 0:01:12]} 33. Nxc4 {[%emt 0:00:28]} dxc4 {[%emt 0:00:12]} 34. Rc3 {[%emt 0:00:49]} b5 {[%emt 0:00:31]} 35. axb5 {[%emt 0:00:40]} Qxb5 {[%emt 0:00:02]} 36. f4 {[%emt 0:00:59]} Be7 {[%emt 0:00:09]} 37. Qc2 {[%emt 0:00:15]} Rc8 {[%emt 0:00:07]} 38. Qc1 {[%emt 0:00:42]} a4 {[%emt 0:00:22]} 39. Kf2 {[%emt 0:01:35]} a3 {[%emt 0:00:13]} 40. Rc2 {[%emt 0:00:00]} Qb3 {[%emt 0:00:00]} 41. Qd2 {[%emt 0:01:37]} c3 {[%emt 0:00:33]} 42. Qe2 {[%emt 0:00:47]} Ra8 {[%emt 0:02:20]} 43. Ra2 {[%emt 0:01:26]} c2 {[%emt 0:00:20]} 44. Rxc2 {[%emt 0:01:35]} a2 {[%emt 0:00:15]} 45. Qd1 {[%emt 0:01:37]} Qa3 {[%emt 0:01:22]} 46. Qa1 {[%emt 0:00:21]} Qb3 {[%emt 0:00:46]} 47. Rb2 {[%emt 0:00:15]} Qxb2+ {[%emt 0:00:13]} 48. Qxb2 a1=Q {[%emt 0:00:10]} 49. Qb5 {[%emt 0:00:36]} Qa4 {[%emt 0:02:34]} 50. Qb7 {[%emt 0:00:22]} Bh4+ {[%emt 0:00:29]} 51. Bg3 {[%emt 0:01:29]} Qc2+ {[%emt 0:01:06]} 52. Kf3 {[%emt 0:01:03]} Qe4+ {[%emt 0:00:22]} 53. Qxe4 {[%emt 0:00:11]} fxe4+ {[%emt 0:00:03]} 54. Kg4 {[%emt 0:00:05]} Be7 {[%emt 0:00:20]} 55. f5 {[%emt 0:00:48]} Ra2 {[%emt 0:03:00]} 56. fxe6 {[%emt 0:00:24]} Rxg2 {[%emt 0:00:09]} 57. Kf4 {[%emt 0:00:38]} Bd6+ {[%emt 0:00:59]} 58. Kxe4 {[%emt 0:00:09]} Rxg3 {[%emt 0:00:06]} 59. Kd5 {[%emt 0:00:19]} Bb8 {[%emt 0:00:19]} 60. e4 {[%emt 0:00:12]} Kf8 {[%emt 0:00:10]} 61. Kc6 {[%emt 0:00:21]} Ke7 {[%emt 0:00:11]} 62. d5 {[%emt 0:00:10]} Re3 {[%emt 0:00:22]} 63. Kb7 {[%emt 0:00:23]} Bd6 {[%emt 0:00:11]} 64. Kc6 {[%emt 0:00:17]} Rxe4 {[%emt 0:00:09]} 65. Kb7 {[%emt 0:00:07]} g5 {[%emt 0:00:07]} 66. Kb6 {[%emt 0:00:06]} h5 {[%emt 0:00:16]} 67. Kb7 {[%emt 0:00:04]} g4 {[%emt 0:00:22]} 68. hxg4 {[%emt 0:00:14]} hxg4 {[%emt 0:00:06]} 69. Kb6 {[%emt 0:00:22]} g3 {[%emt 0:00:15]} 70. Kc6 {[%emt 0:00:05]} g2 {[%emt 0:00:11]} 71. Kb7 {[%emt 0:00:17]} g1=Q {[%emt 0:00:09]} 72. Ka6 {[%emt 0:00:16]} Rb4 {[%emt 0:00:20]} 73. Ka5 {[%emt 0:00:12]} Qb6# 0-1

[Event "EYCC Girls U10 2018"]
[Site "Riga"]
[Date "2018.08.27"]
[Round "7"]
[White "Zhapova, Yana"]
[Black "Svergina, Sofya"]
[Result "1-0"]
[ECO "C07"]
[WhiteElo "1733"]
[BlackElo "1657"]
[Annotator "NA"]
[PlyCount "97"]
[EventDate "2018.08.20"]
[EventType "swiss"]
[EventCountry "LAT"]
[SourceTitle "playchess.com"]
[Source "ChessBase"]
[SourceQuality "1"]
[TimeControl "40/5400+30:1800+30"]

1. e4 {[%emt 0:00:00]} e6 {[%emt 0:00:00]} 2. d4 {[%emt 0:00:00]} d5 {[%emt 0:00:17]} 3. Nd2 {[%emt 0:00:08]} c5 {[%emt 0:00:27]} 4. exd5 {[%emt 0:00:11]} Qxd5 {[%emt 0:00:18]} 5. Ngf3 {[%emt 0:00:12]} cxd4 {[%emt 0:00:18]} 6. Bc4 {[%emt 0:00:18]} Qd6 {[%emt 0:00:15]} 7. O-O {[%emt 0:00:18]} Nf6 {[%emt 0:00:15]} 8. Nb3 {[%emt 0:00:35]} Nc6 {[%emt 0:00:17]} 9. Nbxd4 {[%emt 0:00:15]} Nxd4 {[%emt 0:00:08]} 10. Nxd4 {[%emt 0:00:13]} a6 {[%emt 0:00:14]} 11. Re1 {[%emt 0:00:59]} Qc7 {[%emt 0:00:26]} 12. Qe2 {[%emt 0:00:36]} Bd6 {[%emt 0:15:21]} 13. Bg5 {[%emt 0:02:47]} O-O {[%emt 0:01:11]} 14. Bxf6 {[%emt 0:00:32]} gxf6 {[%emt 0:00:08]} 15. Bd3 {[%emt 0:00:08]} f5 {[%emt 0:01:06]} 16. Qh5 {[%emt 0:00:49]} Kh8 {[%emt 0:02:27]} 17. Re3 {[%emt 0:04:29]} Rg8 {[%emt 0:00:22]} 18. Rae1 {[%emt 0:01:16]} Bd7 {[%emt 0:09:51]} 19. Bf1 {[%emt 0:09:02]} Rg7 {[%emt 0:01:04]} 20. Rh3 {[%emt 0:11:35]} Rag8 {[%emt 0:02:46]} 21. Nf3 {[%emt 0:03:30]} Qd8 {[%emt 0:01:53]} 22. Rd1 {[%emt 0:06:41]} Bc7 {[%emt 0:05:16]} 23. Ng5 {[%emt 0:02:58]} Qxg5 {[%emt 0:03:52]} 24. Qxg5 {[%emt 0:00:06]} Rxg5 {[%emt 0:00:07]} 25. Rxd7 {[%emt 0:00:13]} Be5 {[%emt 0:01:56]} 26. Rxb7 {[%emt 0:00:31]} R5g7 {[%emt 0:00:31]} 27. Rhb3 {[%emt 0:01:57]} Ra8 {[%emt 0:03:00]} 28. c4 {[%emt 0:00:38]} Bd6 {[%emt 0:01:43]} 29. Rd7 {[%emt 0:00:42]} Bc5 {[%emt 0:00:18]} 30. Rbb7 {[%emt 0:00:39]} Rf8 {[%emt 0:00:29]} 31. b4 {[%emt 0:00:13]} Bxb4 {[%emt 0:00:24]} 32. Rxb4 {[%emt 0:00:05]} e5 {[%emt 0:00:15]} 33. c5 {[%emt 0:02:12]} Rc8 {[%emt 0:00:08]} 34. Rd5 {[%emt 0:00:06]} f6 {[%emt 0:00:22]} 35. Bxa6 {[%emt 0:00:08]} Ra8 {[%emt 0:00:17]} 36. Rb6 {[%emt 0:00:11]} Rga7 {[%emt 0:00:19]} 37. c6 {[%emt 0:01:47]} Rxa6 {[%emt 0:00:06]} 38. Rxa6 {[%emt 0:00:10]} Rxa6 {[%emt 0:00:06]} 39. c7 {[%emt 0:00:13]} Rc6 {[%emt 0:00:15]} 40. Rd8+ {[%emt 0:00:00]} Kg7 {[%emt 0:00:00]} 41. c8=Q {[%emt 0:00:16]} Rxc8 {[%emt 0:00:29]} 42. Rxc8 {[%emt 0:00:05]} e4 {[%emt 0:00:19]} 43. a4 {[%emt 0:00:06]} f4 {[%emt 0:00:07]} 44. a5 {[%emt 0:00:03]} f5 {[%emt 0:00:09]} 45. a6 e3 {[%emt 0:00:04]} 46. fxe3 {[%emt 0:00:11]} fxe3 {[%emt 0:00:06]} 47. a7 {[%emt 0:00:07]} e2 {[%emt 0:00:06]} 48. Kf2 {[%emt 0:00:03]} e1=Q+ {[%emt 0:00:18]} 49. Kxe1 {[%emt 0:00:08]} 1-0